[Event "*** Titled Tuesday Blitz"]
[Site "Chess.com"]
[Date "2020.01.07"]
[Round "1"]
[White "Duhless"]
[Black "ChainsOfFantasia"]
[Result "1-0"]
[WhiteElo "3113"]
[BlackElo "2511"]
[TimeControl "180+2"]
[EndTime "13:09:31 PST"]
[Termination "Duhless won by checkmate"]

1. Nf3 {[%clk 0:03:01.9]} 1... Nf6 {[%clk 0:02:43.3]} 2. c4 {[%clk 0:03:02.3]}
2... e6 {[%clk 0:02:28.7]} 3. g3 {[%clk 0:02:47.6]} 3... d5 {[%clk 0:02:30.6]}
4. d4 {[%clk 0:02:47.8]} 4... Be7 {[%clk 0:02:30.9]} 5. Bg2 {[%clk 0:02:49]}
5... O-O {[%clk 0:02:32]} 6. O-O {[%clk 0:02:50.9]} 6... dxc4 {[%clk 0:02:32.9]}
7. Qc2 {[%clk 0:02:52.3]} 7... a6 {[%clk 0:02:34.1]} 8. Rd1 {[%clk 0:02:52.3]}
8... b5 {[%clk 0:02:27.9]} 9. Ne5 {[%clk 0:02:53.4]} 9... Nd5 {[%clk 0:02:21]}
10. b3 {[%clk 0:02:54.1]} 10... cxb3 {[%clk 0:02:17.8]} 11. axb3 {[%clk
0:02:56]} 11... Bb7 {[%clk 0:02:18.1]} 12. Ba3 {[%clk 0:02:57.3]} 12... Bxa3
{[%clk 0:02:12.8]} 13. Nxa3 {[%clk 0:02:59.2]} 13... f6 {[%clk 0:02:09.5]} 14.
Nd3 {[%clk 0:02:59.2]} 14... Nd7 {[%clk 0:02:08.1]} 15. Nc4 {[%clk 0:02:53.5]}
15... bxc4 {[%clk 0:02:02.5]} 16. bxc4 {[%clk 0:02:55.4]} 16... N7b6 {[%clk
0:02:03.5]} 17. cxd5 {[%clk 0:02:50.1]} 17... Bxd5 {[%clk 0:01:44.4]} 18. Bxd5
{[%clk 0:02:45.1]} 18... exd5 {[%clk 0:01:41]} 19. Rdc1 {[%clk 0:02:40.4]} 19...
Rf7 {[%clk 0:01:40.3]} 20. Qc6 {[%clk 0:02:31.1]} 20... Qd7 {[%clk 0:01:36.8]}
21. Qxd7 {[%clk 0:02:29]} 21... Rxd7 {[%clk 0:01:38.7]} 22. Nc5 {[%clk
0:02:29.2]} 22... Re7 {[%clk 0:01:37.9]} 23. e3 {[%clk 0:02:30.2]} 23... a5
{[%clk 0:01:38.7]} 24. Rc2 {[%clk 0:02:30.4]} 24... Kf7 {[%clk 0:01:38]} 25.
Rca2 {[%clk 0:02:31]} 25... Nc4 {[%clk 0:01:34.4]} 26. Nb3 {[%clk 0:02:31.9]}
26... Re6 {[%clk 0:01:33.8]} 27. Nc5 {[%clk 0:02:26.4]} 27... Rb6 {[%clk
0:01:33.8]} 28. Kg2 {[%clk 0:02:27.3]} 28... h5 {[%clk 0:01:32.2]} 29. h4 {[%clk
0:02:27.8]} 29... g5 {[%clk 0:01:32.3]} 30. hxg5 {[%clk 0:02:27.5]} 30... fxg5
{[%clk 0:01:34.2]} 31. Rh1 {[%clk 0:02:26.1]} 31... Kg6 {[%clk 0:01:35]} 32. Nd7
{[%clk 0:02:20.5]} 32... Rd6 {[%clk 0:01:34.2]} 33. Ne5+ {[%clk 0:02:17.9]}
33... Nxe5 {[%clk 0:01:33.8]} 34. dxe5 {[%clk 0:02:19.8]} 34... Re6 {[%clk
0:01:33.9]} 35. f4 {[%clk 0:02:20.8]} 35... a4 {[%clk 0:01:31.7]} 36. g4 {[%clk
0:02:05.4]} 36... hxg4 {[%clk 0:01:27.4]} 37. Kg3 {[%clk 0:02:06.4]} 37... Kf5
{[%clk 0:01:13]} 38. Ra3 {[%clk 0:02:03]} 38... c5 {[%clk 0:01:06.5]} 39. Rh5
{[%clk 0:01:59.9]} 39... Rg6 {[%clk 0:01:07.8]} 40. Rh7 {[%clk 0:01:58.7]} 40...
Rc6 {[%clk 0:01:04.7]} 41. Rg7 {[%clk 0:01:47.4]} 41... gxf4+ {[%clk 0:01:03.4]}
42. exf4 {[%clk 0:01:49.3]} 42... c4 {[%clk 0:01:03.9]} 43. Re3 {[%clk
0:01:48.5]} 43... Rg6 {[%clk 0:00:51]} 44. Rh7 {[%clk 0:01:39.8]} 44... Ke6
{[%clk 0:00:45.1]} 45. Rh5 {[%clk 0:01:37.3]} 45... Rf8 {[%clk 0:00:40.2]} 46.
Ra3 {[%clk 0:01:38.1]} 46... d4 {[%clk 0:00:38.5]} 47. Rxa4 {[%clk 0:01:37.7]}
47... Kd5 {[%clk 0:00:37.2]} 48. e6+ {[%clk 0:01:23.3]} 48... Kxe6 {[%clk
0:00:20.5]} 49. Ra6+ {[%clk 0:01:23.4]} 49... Kf7 {[%clk 0:00:21]} 50. Rf5+
{[%clk 0:01:23.8]} 50... Kg7 {[%clk 0:00:19.4]} 51. Rxg6+ {[%clk 0:01:24.1]}
51... Kxg6 {[%clk 0:00:21.3]} 52. Rxf8 {[%clk 0:01:26]} 52... c3 {[%clk
0:00:22.3]} 53. f5+ {[%clk 0:00:53.6]} 53... Kg5 {[%clk 0:00:22.9]} 54. f6
{[%clk 0:00:54.4]} 54... Kg6 {[%clk 0:00:22.8]} 55. f7 {[%clk 0:00:52.5]} 55...
d3 {[%clk 0:00:16]} 56. Rc8 {[%clk 0:00:48.6]} 56... d2 {[%clk 0:00:14.5]} 57.
f8=Q {[%clk 0:00:49.3]} 57... d1=Q {[%clk 0:00:15.6]} 58. Rc6+ {[%clk
0:00:49.4]} 58... Kg5 {[%clk 0:00:13.6]} 59. Qf6+ {[%clk 0:00:49.6]} 59... Kh5
{[%clk 0:00:13.4]} 60. Qh6# {[%clk 0:00:51.5]} 1-0

[Event "*** Titled Tuesday Blitz"]
[Site "Chess.com"]
[Date "2020.01.07"]
[Round "1"]
[White "Gahan-MG"]
[Black "amintabatabaei"]
[Result "0-1"]
[WhiteElo "2495"]
[BlackElo "2939"]
[TimeControl "180+2"]
[EndTime "13:09:42 PST"]
[Termination "amintabatabaei won by resignation"]

1. e4 {[%clk 0:03:01.9]} 1... c5 {[%clk 0:02:53.1]} 2. Nf3 {[%clk 0:02:54.2]}
2... d6 {[%clk 0:02:54.3]} 3. Bb5+ {[%clk 0:02:54.4]} 3... Nd7 {[%clk
0:02:54.5]} 4. c4 {[%clk 0:02:50.6]} 4... a6 {[%clk 0:02:52.2]} 5. Ba4 {[%clk
0:02:51.5]} 5... Nf6 {[%clk 0:02:45.3]} 6. Nc3 {[%clk 0:02:52.1]} 6... g6 {[%clk
0:02:43.8]} 7. O-O {[%clk 0:02:52.6]} 7... Bg7 {[%clk 0:02:43.6]} 8. Re1 {[%clk
0:02:53.7]} 8... O-O {[%clk 0:02:44.2]} 9. Bc2 {[%clk 0:02:53]} 9... e5 {[%clk
0:02:44.8]} 10. d3 {[%clk 0:02:51.9]} 10... Ne8 {[%clk 0:02:37.9]} 11. Bg5
{[%clk 0:02:48.5]} 11... Bf6 {[%clk 0:02:38.4]} 12. Bh6 {[%clk 0:02:47.4]} 12...
Bg7 {[%clk 0:02:39.7]} 13. Qd2 {[%clk 0:02:48.5]} 13... f5 {[%clk 0:02:37.1]}
14. exf5 {[%clk 0:02:43]} 14... gxf5 {[%clk 0:02:37.2]} 15. Qg5 {[%clk 0:02:38]}
15... Qxg5 {[%clk 0:02:35.7]} 16. Bxg5 {[%clk 0:02:39.9]} 16... Ndf6 {[%clk
0:02:24.9]} 17. Ba4 {[%clk 0:02:35.2]} 17... Nc7 {[%clk 0:02:24.6]} 18. a3
{[%clk 0:02:32.5]} 18... Ne6 {[%clk 0:02:17.6]} 19. Bxf6 {[%clk 0:02:31.1]}
19... Bxf6 {[%clk 0:02:17.5]} 20. Nd5 {[%clk 0:02:32.3]} 20... Bd8 {[%clk
0:01:58.3]} 21. b4 {[%clk 0:02:28.2]} 21... b6 {[%clk 0:01:59.4]} 22. Bc6 {[%clk
0:02:21.7]} 22... Ra7 {[%clk 0:01:59.7]} 23. Rab1 {[%clk 0:02:21.3]} 23... cxb4
{[%clk 0:01:43.4]} 24. Rxb4 {[%clk 0:02:18.2]} 24... b5 {[%clk 0:01:44.5]} 25.
cxb5 {[%clk 0:02:13.1]} 25... axb5 {[%clk 0:01:46.4]} 26. Ra1 {[%clk 0:02:06.7]}
26... Nc5 {[%clk 0:01:41.4]} 27. d4 {[%clk 0:02:02.8]} 27... Nd3 {[%clk
0:01:35.9]} 28. Rxb5 {[%clk 0:02:02.8]} 28... e4 {[%clk 0:01:37.3]} 29. Nd2
{[%clk 0:01:59.1]} 29... Bg5 {[%clk 0:01:34.3]} 30. Nc4 {[%clk 0:01:58.4]} 30...
Ba6 {[%clk 0:01:30.3]} 31. Ra5 {[%clk 0:01:32.7]} 31... Rc8 {[%clk 0:01:30.7]}
32. Nxd6 {[%clk 0:00:53.1]} 32... Rxc6 {[%clk 0:01:31.5]} 33. Nxf5 {[%clk
0:00:54.3]} 33... Rb7 {[%clk 0:01:05]} 34. h4 {[%clk 0:00:30.9]} 34... Bd2
{[%clk 0:01:05.5]} 35. Nb4 {[%clk 0:00:27.4]} 35... Bxb4 {[%clk 0:00:54.3]} 36.
axb4 {[%clk 0:00:27.2]} 36... Nxb4 {[%clk 0:00:56.2]} 37. Rb1 {[%clk 0:00:21.9]}
37... Bd3 {[%clk 0:00:42]} 38. Rxb4 {[%clk 0:00:19.6]} 38... Rc1+ {[%clk
0:00:43]} 39. Kh2 {[%clk 0:00:20.9]} 39... Rxb4 {[%clk 0:00:44.9]} 40. d5 {[%clk
0:00:19.8]} 40... e3 {[%clk 0:00:40.2]} 41. Nxe3 {[%clk 0:00:19.8]} 41... Rxh4+
{[%clk 0:00:41.9]} 42. Kg3 {[%clk 0:00:21.2]} 42... Rd4 {[%clk 0:00:43.6]} 43.
Ra8+ {[%clk 0:00:19.5]} 43... Kf7 {[%clk 0:00:43.5]} 44. Ra7+ {[%clk 0:00:21.4]}
44... Ke8 {[%clk 0:00:44.6]} 45. Ra8+ {[%clk 0:00:15.3]} 45... Kd7 {[%clk
0:00:45.3]} 46. Ra7+ {[%clk 0:00:17.2]} 46... Kd6 {[%clk 0:00:45.9]} 47. Rf7
{[%clk 0:00:17.4]} 47... Rc3 {[%clk 0:00:45]} 48. Rf6+ {[%clk 0:00:17.4]} 48...
Ke7 {[%clk 0:00:43.9]} 49. Re6+ {[%clk 0:00:18.4]} 49... Kd7 {[%clk 0:00:45.5]}
50. Kf3 {[%clk 0:00:17.3]} 50... Bc4 {[%clk 0:00:44.4]} 51. Rh6 {[%clk 0:00:15]}
51... Bxd5+ {[%clk 0:00:44.8]} 52. Kg3 {[%clk 0:00:16.5]} 52... Be4 {[%clk
0:00:45.6]} 53. Kf4 {[%clk 0:00:16.1]} 53... Bg6+ {[%clk 0:00:46.5]} 54. Ke5
{[%clk 0:00:17.2]} 54... Re4+ {[%clk 0:00:47.5]} 55. Kf6 {[%clk 0:00:18.5]}
55... Re6+ {[%clk 0:00:47.1]} 56. Kg7 {[%clk 0:00:19.4]} 56... Rc7 {[%clk
0:00:48]} 57. Nd5 {[%clk 0:00:20.5]} 57... Rb7 {[%clk 0:00:48.5]} 58. Nf4 {[%clk
0:00:17.1]} 58... Kd6+ {[%clk 0:00:49]} 0-1

[Event "*** Titled Tuesday Blitz"]
[Site "Chess.com"]
[Date "2020.01.07"]
[Round "1"]
[White "ExcitingTrap"]
[Black "VincentKeymer"]
[Result "0-1"]
[WhiteElo "2326"]
[BlackElo "2665"]
[TimeControl "180+2"]
[EndTime "13:09:50 PST"]
[Termination "VincentKeymer won by resignation"]

1. e4 {[%clk 0:03:01.9]} 1... c5 {[%clk 0:02:59]} 2. Nf3 {[%clk 0:03:02.4]} 2...
e6 {[%clk 0:02:59.9]} 3. g3 {[%clk 0:03:01.4]} 3... Nf6 {[%clk 0:02:58.7]} 4. e5
{[%clk 0:02:59.4]} 4... Nd5 {[%clk 0:02:59.7]} 5. Bg2 {[%clk 0:02:52.8]} 5... d6
{[%clk 0:03:00.2]} 6. O-O {[%clk 0:02:51.1]} 6... Nc6 {[%clk 0:03:00.3]} 7. Re1
{[%clk 0:02:47]} 7... dxe5 {[%clk 0:02:58.7]} 8. Nxe5 {[%clk 0:02:48.9]} 8...
Nxe5 {[%clk 0:02:59.6]} 9. Rxe5 {[%clk 0:02:50.8]} 9... Bd6 {[%clk 0:03:00.5]}
10. Re1 {[%clk 0:02:43.4]} 10... O-O {[%clk 0:03:01.2]} 11. d4 {[%clk
0:02:44.9]} 11... cxd4 {[%clk 0:02:55.1]} 12. Qxd4 {[%clk 0:02:46.8]} 12... Be7
{[%clk 0:02:53.2]} 13. c4 {[%clk 0:02:34.9]} 13... Nb4 {[%clk 0:02:45.7]} 14.
Qc3 {[%clk 0:02:20.3]} 14... Qd3 {[%clk 0:02:24.7]} 15. Be4 {[%clk 0:02:05]}
15... Qxc3 {[%clk 0:02:21.6]} 16. Nxc3 {[%clk 0:02:06.9]} 16... Rd8 {[%clk
0:02:15.5]} 17. Bf4 {[%clk 0:01:58.5]} 17... g5 {[%clk 0:01:55]} 18. Be3 {[%clk
0:01:24]} 18... f5 {[%clk 0:01:52.5]} 19. Bb1 {[%clk 0:01:18.9]} 19... b6 {[%clk
0:01:12.7]} 20. a3 {[%clk 0:00:59.2]} 20... Nc6 {[%clk 0:00:59.4]} 21. Nb5
{[%clk 0:00:50.9]} 21... Ne5 {[%clk 0:00:49.6]} 22. Rc1 {[%clk 0:00:44.8]} 22...
Nf3+ {[%clk 0:00:40]} 23. Kg2 {[%clk 0:00:41.6]} 23... Bb7 {[%clk 0:00:38.8]}
24. Kf1 {[%clk 0:00:21.3]} 24... Nxh2+ {[%clk 0:00:34.5]} 25. Ke2 {[%clk
0:00:15]} 25... Kf7 {[%clk 0:00:30]} 26. Ba2 {[%clk 0:00:11.9]} 26... Bc5 {[%clk
0:00:21.3]} 27. b4 {[%clk 0:00:10.7]} 27... Bxe3 {[%clk 0:00:21]} 28. fxe3
{[%clk 0:00:12.4]} 28... Bf3+ {[%clk 0:00:21.2]} 29. Ke1 {[%clk 0:00:12.1]}
29... Be4 {[%clk 0:00:21.8]} 30. Rd1 {[%clk 0:00:11.9]} 30... Nf3+ {[%clk
0:00:21.9]} 31. Kf2 {[%clk 0:00:12.7]} 31... Ke7 {[%clk 0:00:23.6]} 32. c5
{[%clk 0:00:11.9]} 32... bxc5 {[%clk 0:00:24]} 33. bxc5 {[%clk 0:00:11.9]} 33...
Rac8 {[%clk 0:00:25.1]} 34. Rxd8 {[%clk 0:00:10.7]} 34... Rxd8 {[%clk
0:00:26.2]} 35. Nd6 {[%clk 0:00:11.4]} 35... Rb8 {[%clk 0:00:25.7]} 36. Nxe4
{[%clk 0:00:10.4]} 36... fxe4 {[%clk 0:00:26.6]} 37. Bc4 {[%clk 0:00:10.7]}
37... Rb2+ {[%clk 0:00:27]} 38. Be2 {[%clk 0:00:11.5]} 38... Ne5 {[%clk
0:00:25.5]} 39. Kf1 {[%clk 0:00:10.3]} 39... Nd3 {[%clk 0:00:25.6]} 40. c6
{[%clk 0:00:08.6]} 40... Kd6 {[%clk 0:00:26.3]} 41. Rd1 {[%clk 0:00:09.7]} 41...
Rb3 {[%clk 0:00:27.3]} 42. Bg4 {[%clk 0:00:07]} 42... Rc3 {[%clk 0:00:26.6]} 43.
c7 {[%clk 0:00:05.2]} 43... Rxc7 {[%clk 0:00:27.2]} 44. Bf3 {[%clk 0:00:05]}
44... exf3 {[%clk 0:00:26.4]} 45. Rxd3+ {[%clk 0:00:05.9]} 45... Ke5 {[%clk
0:00:28]} 46. Kf2 {[%clk 0:00:06.5]} 46... g4 {[%clk 0:00:28.3]} 47. Rd4 {[%clk
0:00:07]} 47... Rc2+ {[%clk 0:00:28.9]} 48. Kf1 {[%clk 0:00:08.2]} 48... h5
{[%clk 0:00:30.5]} 49. Ra4 {[%clk 0:00:08.8]} 49... Kf5 {[%clk 0:00:31]} 50.
Ra5+ {[%clk 0:00:08.7]} 50... Ke4 {[%clk 0:00:31.6]} 51. Rxh5 {[%clk 0:00:09]}
51... Rg2 {[%clk 0:00:27.4]} 52. Rg5 {[%clk 0:00:04.8]} 52... Rxg3 {[%clk
0:00:28.4]} 53. Kf2 {[%clk 0:00:05.3]} 53... Rg2+ {[%clk 0:00:29.4]} 54. Kf1
{[%clk 0:00:06.9]} 54... Kxe3 {[%clk 0:00:30.5]} 55. Re5+ {[%clk 0:00:07.5]}
55... Kf4 {[%clk 0:00:31.7]} 56. Rxe6 {[%clk 0:00:08.5]} 56... Rb2 {[%clk
0:00:31.9]} 57. Re7 {[%clk 0:00:08.3]} 57... Kg3 {[%clk 0:00:33]} 58. Ke1 {[%clk
0:00:06.1]} 58... Kg2 {[%clk 0:00:33.2]} 59. Re4 {[%clk 0:00:06]} 59... f2+
{[%clk 0:00:35.1]} 0-1

[Event "*** Titled Tuesday Blitz"]
[Site "Chess.com"]
[Date "2020.01.07"]
[Round "1"]
[White "Bad4life"]
[Black "Faqade"]
[Result "0-1"]
[WhiteElo "2315"]
[BlackElo "2649"]
[TimeControl "180+2"]
[EndTime "13:09:58 PST"]
[Termination "Faqade won by checkmate"]

1. e4 {[%clk 0:02:57.1]} 1... c5 {[%clk 0:02:59.2]} 2. Nf3 {[%clk 0:02:55.4]}
2... e6 {[%clk 0:02:59.7]} 3. g3 {[%clk 0:02:55.6]} 3... Nc6 {[%clk 0:02:58.6]}
4. Bg2 {[%clk 0:02:55.3]} 4... Nf6 {[%clk 0:02:59.5]} 5. Nc3 {[%clk 0:02:54.9]}
5... d6 {[%clk 0:02:59.7]} 6. O-O {[%clk 0:02:55.6]} 6... Be7 {[%clk 0:03:00.3]}
7. d4 {[%clk 0:02:57]} 7... cxd4 {[%clk 0:03:00.1]} 8. Nxd4 {[%clk 0:02:58.9]}
8... O-O {[%clk 0:02:54.9]} 9. b3 {[%clk 0:02:59]} 9... Bd7 {[%clk 0:02:47.4]}
10. Ndb5 {[%clk 0:02:39.2]} 10... Qb8 {[%clk 0:02:46]} 11. Ba3 {[%clk 0:02:39]}
11... Ne8 {[%clk 0:02:43.2]} 12. Bb2 {[%clk 0:02:09.1]} 12... a6 {[%clk
0:02:26.9]} 13. Nd4 {[%clk 0:02:07.3]} 13... Nxd4 {[%clk 0:02:27.8]} 14. Qxd4
{[%clk 0:02:09.2]} 14... Bf6 {[%clk 0:02:28.5]} 15. Qd3 {[%clk 0:01:59.4]} 15...
Bb5 {[%clk 0:02:11.3]} 16. Nxb5 {[%clk 0:01:55.1]} 16... Bxb2 {[%clk 0:02:10.5]}
17. Rab1 {[%clk 0:01:50.8]} 17... Bf6 {[%clk 0:02:10.9]} 18. Na3 {[%clk
0:01:39.3]} 18... b5 {[%clk 0:02:08.3]} 19. e5 {[%clk 0:01:40.6]} 19... Bxe5
{[%clk 0:02:06.1]} 20. Bxa8 {[%clk 0:01:27.9]} 20... Qxa8 {[%clk 0:02:07.8]} 21.
c4 {[%clk 0:01:29.2]} 21... Nc7 {[%clk 0:02:01.7]} 22. f4 {[%clk 0:01:26.1]}
22... Bf6 {[%clk 0:02:01.6]} 23. Qxd6 {[%clk 0:01:20.4]} 23... Qa7+ {[%clk
0:01:47.3]} 24. Kg2 {[%clk 0:01:10.9]} 24... Qb7+ {[%clk 0:01:28.1]} 25. Kh3
{[%clk 0:00:50.7]} 25... Rd8 {[%clk 0:01:21.7]} 26. Qc5 {[%clk 0:00:45.4]} 26...
Rd2 {[%clk 0:01:06.8]} 27. Qg1 {[%clk 0:00:10.4]} 27... Qe4 {[%clk 0:00:46.7]}
28. Rbe1 {[%clk 0:00:07.6]} 28... Qd3 {[%clk 0:00:37.5]} 29. Nb1 {[%clk
0:00:07.9]} 29... Rxa2 {[%clk 0:00:20.1]} 30. Rd1 {[%clk 0:00:08.2]} 30... Qf5+
{[%clk 0:00:19.9]} 31. g4 {[%clk 0:00:08.7]} 31... Qe4 {[%clk 0:00:21.4]} 32.
Qg3 {[%clk 0:00:07.5]} 32... h6 {[%clk 0:00:21.1]} 33. Rfe1 {[%clk 0:00:05.8]}
33... Qc6 {[%clk 0:00:18.9]} 34. cxb5 {[%clk 0:00:05.8]} 34... Nxb5 {[%clk
0:00:18]} 35. Rd2 {[%clk 0:00:06.2]} 35... Rxd2 {[%clk 0:00:17.5]} 36. Nxd2
{[%clk 0:00:07.3]} 36... Bc3 {[%clk 0:00:19.4]} 37. Rc1 {[%clk 0:00:08.2]} 37...
Qd5 {[%clk 0:00:16.8]} 38. Nf3 {[%clk 0:00:08]} 38... Qxb3 {[%clk 0:00:16.1]}
39. Ne5 {[%clk 0:00:08.8]} 39... Qb2 {[%clk 0:00:17.3]} 40. Rd1 {[%clk
0:00:08.7]} 40... Bxe5 {[%clk 0:00:18.2]} 41. Rd8+ {[%clk 0:00:08.7]} 41... Kh7
{[%clk 0:00:18.3]} 42. fxe5 {[%clk 0:00:10.6]} 42... Qc2 {[%clk 0:00:18.7]} 43.
Rf8 {[%clk 0:00:09.3]} 43... Kg6 {[%clk 0:00:17.1]} 44. Qf3 {[%clk 0:00:07.8]}
44... Qc3 {[%clk 0:00:15.3]} 45. Rxf7 {[%clk 0:00:05.8]} 45... Qxe5 {[%clk
0:00:15.6]} 46. Qd3+ {[%clk 0:00:05.6]} 46... Kxf7 {[%clk 0:00:15.8]} 47. Qd7+
{[%clk 0:00:04.5]} 47... Kg6 {[%clk 0:00:15.9]} 48. Qe8+ {[%clk 0:00:05.8]}
48... Kh7 {[%clk 0:00:16.7]} 49. Qf7 {[%clk 0:00:06.8]} 49... Nd6 {[%clk
0:00:17.4]} 50. Qf3 {[%clk 0:00:07]} 50... Ne4 {[%clk 0:00:17.7]} 51. Qd3 {[%clk
0:00:07.9]} 51... a5 {[%clk 0:00:18.6]} 52. Kg2 {[%clk 0:00:08.5]} 52... Qf4
{[%clk 0:00:19.3]} 53. Qc2 {[%clk 0:00:07.8]} 53... Qxg4+ {[%clk 0:00:19.1]} 54.
Kf1 {[%clk 0:00:09.4]} 54... Qf3+ {[%clk 0:00:20.1]} 55. Kg1 {[%clk 0:00:09.9]}
55... Qe3+ {[%clk 0:00:20.8]} 56. Kg2 {[%clk 0:00:10.5]} 56... a4 {[%clk
0:00:21.3]} 57. Qxa4 {[%clk 0:00:09.2]} 57... Qf2+ {[%clk 0:00:22.3]} 58. Kh3
{[%clk 0:00:10.2]} 58... Qf3+ {[%clk 0:00:24.2]} 59. Kh4 {[%clk 0:00:11.4]}
59... g5# {[%clk 0:00:26.1]} 0-1

[Event "*** Titled Tuesday Blitz"]
[Site "Chess.com"]
[Date "2020.01.07"]
[Round "1"]
[White "ShahMatKanal"]
[Black "szefru"]
[Result "1-0"]
[WhiteElo "2552"]
[BlackElo "2125"]
[TimeControl "180+2"]
[EndTime "13:09:58 PST"]
[Termination "ShahMatKanal won by resignation"]

1. d4 {[%clk 0:03:00.8]} 1... d5 {[%clk 0:02:59.8]} 2. c4 {[%clk 0:03:00.4]}
2... c6 {[%clk 0:03:00.8]} 3. Nf3 {[%clk 0:03:01.2]} 3... Nf6 {[%clk 0:03:02.2]}
4. e3 {[%clk 0:03:01.1]} 4... e6 {[%clk 0:03:03.5]} 5. Nc3 {[%clk 0:03:01.6]}
5... a6 {[%clk 0:03:04.6]} 6. Be2 {[%clk 0:03:02.2]} 6... dxc4 {[%clk
0:03:04.7]} 7. Bxc4 {[%clk 0:03:04.1]} 7... b5 {[%clk 0:03:05.9]} 8. Bd3 {[%clk
0:03:05.1]} 8... Nbd7 {[%clk 0:03:06.1]} 9. O-O {[%clk 0:03:05.6]} 9... Be7
{[%clk 0:03:05.2]} 10. a3 {[%clk 0:03:05.7]} 10... c5 {[%clk 0:03:05.3]} 11. Qe2
{[%clk 0:03:01.9]} 11... Bb7 {[%clk 0:03:02.2]} 12. Rd1 {[%clk 0:03:01.8]} 12...
Qb6 {[%clk 0:02:58.8]} 13. Bd2 {[%clk 0:02:57.1]} 13... Rc8 {[%clk 0:02:55.3]}
14. Rac1 {[%clk 0:02:58]} 14... cxd4 {[%clk 0:02:49.3]} 15. exd4 {[%clk
0:02:56.1]} 15... O-O {[%clk 0:02:49.5]} 16. Bb1 {[%clk 0:02:49.4]} 16... g6
{[%clk 0:02:48.9]} 17. Be3 {[%clk 0:02:40.6]} 17... Nd5 {[%clk 0:02:47.8]} 18.
Bh6 {[%clk 0:02:41]} 18... Rfd8 {[%clk 0:02:44.8]} 19. Ne4 {[%clk 0:02:41.8]}
19... Rxc1 {[%clk 0:02:40.2]} 20. Rxc1 {[%clk 0:02:42.4]} 20... N5f6 {[%clk
0:02:35.6]} 21. Bg5 {[%clk 0:02:31.8]} 21... Rc8 {[%clk 0:02:21]} 22. Rxc8+
{[%clk 0:02:31.3]} 22... Bxc8 {[%clk 0:02:21.3]} 23. Ne5 {[%clk 0:02:23.8]}
23... Nxe5 {[%clk 0:01:52.6]} 24. dxe5 {[%clk 0:02:23.6]} 24... Nxe4 {[%clk
0:01:49.7]} 25. Bxe7 {[%clk 0:02:19]} 25... Qc7 {[%clk 0:01:13.2]} 26. Qc2
{[%clk 0:02:17.2]} 26... Qxc2 {[%clk 0:01:01.2]} 27. Bxc2 {[%clk 0:02:19.1]}
27... Nd2 {[%clk 0:01:01.5]} 28. Bb4 {[%clk 0:02:18]} 28... Nc4 {[%clk
0:01:01.9]} 29. Bc3 {[%clk 0:02:19.1]} 29... Bb7 {[%clk 0:01:02.2]} 30. f3
{[%clk 0:02:16.1]} 30... Kg7 {[%clk 0:01:00.3]} 31. Kf2 {[%clk 0:02:16.6]} 31...
Bd5 {[%clk 0:00:58.4]} 32. a4 {[%clk 0:02:15.3]} 32... bxa4 {[%clk 0:00:57.3]}
33. Bxa4 {[%clk 0:02:17.2]} 33... g5 {[%clk 0:00:49.3]} 34. Bd7 {[%clk 0:02:13]}
34... Nb6 {[%clk 0:00:48.7]} 35. Be8 {[%clk 0:02:08.4]} 35... Kf8 {[%clk
0:00:46.1]} 36. Bd4 {[%clk 0:02:05.7]} 36... Kxe8 {[%clk 0:00:44.1]} 37. Bxb6
{[%clk 0:02:06.4]} 37... Kd7 {[%clk 0:00:44.7]} 38. Kg3 {[%clk 0:02:01.9]} 38...
h5 {[%clk 0:00:43.4]} 39. Be3 {[%clk 0:02:01.1]} 39... g4 {[%clk 0:00:36.6]} 40.
fxg4 {[%clk 0:01:47]} 40... hxg4 {[%clk 0:00:38.5]} 41. Kxg4 {[%clk 0:01:34.6]}
41... Bxg2 {[%clk 0:00:38.9]} 42. h4 {[%clk 0:01:35.9]} 42... Be4 {[%clk
0:00:39.4]} 43. Kg5 {[%clk 0:01:36]} 43... Ke7 {[%clk 0:00:39]} 44. Bc5+ {[%clk
0:01:36.7]} 44... Ke8 {[%clk 0:00:37.1]} 45. h5 {[%clk 0:01:38.1]} 45... f5
{[%clk 0:00:31.5]} 46. exf6 {[%clk 0:01:29.6]} 46... Kf7 {[%clk 0:00:32.3]} 47.
Kf4 {[%clk 0:01:26.6]} 47... Bh7 {[%clk 0:00:31.6]} 48. Ke5 {[%clk 0:01:25.6]}
48... Bd3 {[%clk 0:00:31]} 49. Be3 {[%clk 0:01:23.1]} 49... Be2 {[%clk
0:00:30.4]} 50. h6 {[%clk 0:01:24]} 50... Bc4 {[%clk 0:00:28.4]} 51. Bg5 {[%clk
0:01:19.8]} 51... Kg6 {[%clk 0:00:28.1]} 52. Kd6 {[%clk 0:01:16.8]} 52... Bb3
{[%clk 0:00:24.2]} 53. Ke7 {[%clk 0:00:30.3]} 53... e5 {[%clk 0:00:23.4]} 54. h7
{[%clk 0:00:30.6]} 54... Kxh7 {[%clk 0:00:23]} 55. f7 {[%clk 0:00:32.2]} 55...
Bxf7 {[%clk 0:00:20.4]} 56. Kxf7 {[%clk 0:00:34.1]} 56... e4 {[%clk 0:00:18.9]}
57. Bd2 {[%clk 0:00:34.7]} 57... a5 {[%clk 0:00:13.2]} 58. Bxa5 {[%clk
0:00:33.4]} 58... e3 {[%clk 0:00:13.2]} 59. Be1 {[%clk 0:00:32.9]} 59... e2
{[%clk 0:00:13.6]} 60. b4 {[%clk 0:00:34.1]} 60... Kh6 {[%clk 0:00:13.5]} 61. b5
{[%clk 0:00:35.4]} 61... Kg5 {[%clk 0:00:14.8]} 62. b6 {[%clk 0:00:36.9]} 62...
Kf4 {[%clk 0:00:15.3]} 63. b7 {[%clk 0:00:38.4]} 1-0